fUSD/lending_fUSD_20241225
["ID","MTS","AMOUNT","RATE_DAILY","PERIOD"]
[346560060,1735087834269,-2060.68,0.00012976,2]
[346560061,1735087834278,-500.0,0.00012976,2]
[346560062,1735087834288,-1308.56,0.00012976,2]
[346560063,1735087834298,-500.0,0.00012976,2]
[346560064,1735087834307,-2317.98,0.00012976,2]
[346560065,1735087834317,-500.0,0.00012976,2]
[346560066,1735087834327,-500.0,0.00012976,2]
[346560067,1735087834336,-500.0,0.00012976,2]
[346560068,1735087834345,-1624.18,0.00012976,2]
[346560069,1735087834354,-500.0,0.00012976,2]
[346560070,1735087834363,-584.72469053,0.00012976,2]
[346560071,1735087834373,-500.0,0.00012976,2]
[346560072,1735087834382,-1285.54,0.00012976,2]
[346560073,1735087834392,-500.0,0.00012976,2]
[346560074,1735087834401,-500.0,0.00012976,2]
[346560075,1735087834410,-952.67,0.00012976,2]
[346560076,1735087834419,-502.07806669,0.00012976,2]
[346560077,1735087834429,-506.05518069,0.00012976,2]
[346560078,1735087834438,-557.05521782,0.00012976,2]
[346560079,1735087834447,-500.0,0.00012976,2]
[346560080,1735087834457,-208.8512126,0.00012976,2]
[346560081,1735087834466,-500.0,0.00012976,2]
[346560082,1735087834476,-1332.21,0.00012976,2]
[346560083,1735087834485,-500.0,0.00012976,2]
[346560084,1735087834495,-500.0,0.00012976,2]
[346560085,1735087834504,-229.33927114,0.00012976,2]
[346560086,1735087834513,-500.0,0.00012976,2]
[346560087,1735087834522,-500.0,0.00012976,2]
[346560088,1735087834533,-584.07860485,0.00012976,2]
[346560089,1735087834542,-500.0,0.00012976,2]
[346560090,1735087834552,-500.0,0.00012976,2]
[346560091,1735087834561,-800.71,0.00012976,2]
[346560092,1735087834571,-2068.9,0.00012976,2]
[346560093,1735087834583,-500.0,0.00012976,2]
[346560094,1735087834592,-500.0,0.00012976,2]
[346560095,1735087834603,-725.17,0.00012976,2]
[346560096,1735087834612,-500.0,0.00012976,2]
[346560097,1735087834622,-1005.8,0.00012976,2]
[346560098,1735087834632,-500.0,0.00012976,2]
[346560099,1735087834641,-500.0,0.00012976,2]
[346560100,1735087834651,-858.88,0.00012976,2]
[346560101,1735087834662,-503.01373592,0.00012976,2]
[346560102,1735087834671,-150.41174869,0.00012976,2]
[346560103,1735087834681,-500.0,0.00012976,2]
[346560104,1735087834691,-500.0,0.00012976,2]
[346560105,1735087834700,-500.0,0.00012976,2]
[346560106,1735087834710,-500.0,0.00012976,2]
[346560107,1735087834719,-2905.59,0.00012976,2]
[346560108,1735087834732,-500.0,0.00012976,2]
[346560109,1735087834747,-500.0,0.00012976,2]
[346560110,1735087834756,-500.0,0.00012976,2]
[346560111,1735087834765,-500.0,0.00012976,2]
[346560112,1735087834775,-500.0,0.00012976,2]
[346560113,1735087834785,-500.0,0.00012976,2]
[346560114,1735087834795,-500.0,0.00012976,2]
[346560115,1735087834804,-2456.57,0.00012976,2]
[346560116,1735087834814,-500.0,0.00012976,2]
[346560117,1735087834823,-500.0,0.00012976,2]
[346560118,1735087834833,-736.08,0.00012976,2]
[346560119,1735087834842,-500.0,0.00012976,2]
[346560120,1735087834852,-500.0,0.00012976,2]
[346560121,1735087834861,-500.0,0.00012976,2]
[346560122,1735087834872,-500.0,0.00012976,2]
[346560123,1735087834882,-500.0,0.00012976,2]
[346560124,1735087834891,-500.52604979,0.00012976,2]
[346560125,1735087834901,-504.35139899,0.00012976,2]
[346560126,1735087834910,-712.37,0.00012976,2]
[346560127,1735087834922,-2049.53,0.00012976,2]
[346560128,1735087835082,-500.0,0.00012976,2]
[346560129,1735087835092,-500.0,0.00012976,2]
[346560130,1735087835101,-559.62,0.00012976,2]
[346560131,1735087835110,-500.0,0.00012976,2]
[346560132,1735087835126,-500.0,0.00012976,2]
[346560133,1735087835135,-275.408168,0.00012976,2]
[346560134,1735087835145,-275.408168,0.00012976,2]
[346560135,1735087835155,-500.0,0.00012976,2]
[346560136,1735087835164,-500.0,0.00012976,2]
[346560137,1735087835174,-415.43050673,0.00012976,2]
[346560138,1735087835183,-500.0,0.00012976,2]
[346560139,1735087835192,-500.0,0.00012976,2]
[346560140,1735087835201,-1458.68,0.00012976,2]
[346560141,1735087835211,-517.58,0.00012976,2]
[346560142,1735087835221,-500.0,0.00012976,2]
[346560143,1735087835230,-500.0,0.00012976,2]
[346560144,1735087835239,-2536.08,0.00012976,2]
[346560145,1735087835248,-151.0,0.00012976,2]
[346560146,1735087835257,-161.954179,0.00012976,2]
[346560147,1735087835267,-500.0,0.00012976,2]
[346560148,1735087835276,-639.34,0.00012976,2]
[346560149,1735087835285,-151.0,0.00012976,2]
[346560150,1735087835295,-500.0,0.00012976,2]
[346560151,1735087835304,-500.0,0.00012976,2]
[346560152,1735087835313,-500.0,0.00012976,2]
[346560153,1735087835323,-1192.83,0.00012976,2]
[346560154,1735087835332,-500.0,0.00012976,2]
[346560155,1735087835341,-1339.74,0.00012976,2]
[346560156,1735087835350,-500.0,0.00012976,2]
[346560157,1735087835359,-500.0,0.00012976,2]
[346560158,1735087835369,-3456.13,0.00012976,2]
[346560159,1735087835378,-151.0,0.00012976,2]
[346560160,1735087835388,-151.0,0.00012976,2]
[346560161,1735087835398,-566.8082369,0.00012976,2]
[346560162,1735087835407,-500.0,0.00012976,2]
[346560163,1735087835416,-832.23,0.00012976,2]
[346560164,1735087835425,-500.0,0.00012976,2]
[346560165,1735087835436,-1827.63,0.00012976,2]
[346560166,1735087835445,-500.0,0.00012976,2]
[346560167,1735087835455,-335.009053,0.00012976,2]
[346560168,1735087835464,-500.0,0.00012976,2]
[346560169,1735087835475,-1787.69,0.00012976,2]
[346560170,1735087835485,-335.009053,0.00012976,2]
[346560171,1735087835494,-196.04037432,0.00012976,2]
[346560172,1735087835504,-280.018283,0.00012976,2]
[346560173,1735087835513,-220.653429,0.00012976,2]
[346560174,1735087835523,-500.0,0.00012976,2]
[346560175,1735087835532,-280.018283,0.00012976,2]
[346560176,1735087835541,-220.653429,0.00012976,2]
[346560177,1735087835551,-500.0,0.00012976,2]
[346560178,1735087835561,-500.0,0.00012976,2]
[346560179,1735087835570,-934.27,0.00012976,2]
[346560180,1735087835580,-500.0,0.00012976,2]
[346560181,1735087835589,-626.22,0.00012976,2]
[346560182,1735087835599,-153.708595,0.00012976,2]
[346560183,1735087835608,-500.0,0.00012976,2]
[346560184,1735087835618,-3191.33,0.00012976,2]
[346560185,1735087835628,-2823.23,0.00012976,2]
[346560186,1735087835638,-500.0,0.00012976,2]
[346560187,1735087835647,-5358.31,0.00012976,2]
[346560188,1735087835656,-1302.84,0.00012976,2]
[346560189,1735087835665,-500.0,0.00012976,2]
[346560190,1735087835674,-500.0,0.00012976,2]
[346560191,1735087835684,-500.0,0.00012976,2]
[346560192,1735087835693,-2186.14,0.00012976,2]
[346560193,1735087835703,-4953.89,0.00012976,2]
[346560194,1735087835712,-1977.99,0.00012976,2]
[346560195,1735087835722,-288.327941,0.00012976,2]
[346560196,1735087835736,-3809.62,0.00012976,2]
[346560197,1735087835745,-385.23407872,0.00012976,2]
[346560198,1735087835754,-500.0,0.00012976,2]
[346560199,1735087835763,-288.327941,0.00012976,2]
[346560200,1735087835773,-500.0,0.00012976,2]
[346560201,1735087835782,-500.0,0.00012976,2]
[346560202,1735087835791,-838.61,0.00012976,2]
[346560203,1735087835801,-1813.89,0.00012976,2]
[346560204,1735087835810,-500.0,0.00012976,2]
[346560205,1735087835820,-18230.64985867,0.00012976,2]
[346560206,1735087836648,-762.50995127,0.00012976,2]
[346560207,1735087836664,-551.48596741,0.00012976,2]
[346560208,1735087836676,-670.37804133,0.00012976,2]
[346560209,1735087836688,-633.91785618,0.00012976,2]
[346560210,1735087836699,-1238.04,0.00012976,2]
[346560211,1735087836715,-999.90832514,0.00012976,2]
[346560212,1735087836725,-500.0,0.00012976,2]
[346560213,1735087836738,-2285.11,0.00012976,2]
[346560214,1735087836747,-273.22155833,0.00012976,2]
[346560215,1735087836757,-489.79570988,0.00012976,2]
[346560216,1735087836791,-388.59141856,0.00012976,2]
[346560393,1735087839530,-500.0,0.00012975,2]
[346560395,1735087839540,-346.77131323,0.00012976,2]
[346560397,1735087839551,-500.0,0.00012976,2]
[346560399,1735087839560,-2273.87,0.00012976,2]
[346560401,1735087839570,-500.0,0.00012976,2]
[346560403,1735087839579,-500.0,0.00012976,2]
[346560405,1735087839591,-490.06755569,0.00012976,2]
[346560407,1735087839603,-3158.82244431,0.00012976,2]
[346560410,1735087839613,-733.8,0.00012976,2]
[346560412,1735087839623,-500.0,0.00012976,2]
[346560414,1735087839634,-151.0,0.00012976,2]
[346560416,1735087839643,-151.0,0.00012976,2]
[346560418,1735087839653,-151.0,0.00012976,2]
[346560420,1735087839663,-500.0,0.00012976,2]
[346560421,1735087839672,-3613.29,0.00012976,2]
[346560423,1735087839682,-500.0,0.00012976,2]
[346560425,1735087839691,-6743.12,0.00012976,2]
[346560427,1735087839701,-1594.76,0.00012976,2]
[346560429,1735087839711,-1717.08878,0.00012976,2]
[346560431,1735087839720,-1717.08878,0.00012976,2]
[346560433,1735087839732,-1717.08878,0.00012976,2]
[346560435,1735087839743,-1128.35,0.00012976,2]
[346560437,1735087839752,-5039.9,0.00012976,2]
[346560439,1735087839762,-500.0,0.00012976,2]
[346560441,1735087839771,-1717.08878,0.00012976,2]
[346560443,1735087839782,-1717.08878,0.00012976,2]
[346560445,1735087839791,-1717.08878,0.00012976,2]
[346560447,1735087839801,-500.0,0.00012976,2]
[346560449,1735087839811,-500.0,0.00012976,2]
[346560451,1735087839820,-895.09,0.00012976,2]
[346560453,1735087839829,-1959.77,0.00012976,2]
[346560455,1735087839839,-505.12345956,0.00012976,2]
[346560457,1735087839849,-3826.26,0.00012976,2]
[346560459,1735087839858,-417.019184,0.00012976,2]
[346560461,1735087839867,-2578.12,0.00012976,2]
[346560463,1735087839876,-417.019184,0.00012976,2]
[346560464,1735087839885,-417.019184,0.00012976,2]
[346560467,1735087839895,-417.019184,0.00012976,2]
[346560469,1735087839905,-417.019184,0.00012976,2]
[346560470,1735087839915,-417.019184,0.00012976,2]
[346560472,1735087839925,-509.17829137,0.00012976,2]
[346560475,1735087839935,-1412.872922,0.00012976,2]
[346560477,1735087839944,-5966.68,0.00012976,2]
[346560478,1735087839954,-5564.56,0.00012976,2]
[346560480,1735087839963,-1412.872922,0.00012976,2]
[346560482,1735087839973,-500.0,0.00012976,2]
[346560484,1735087839982,-500.0,0.00012976,2]
[346560486,1735087839992,-500.0,0.00012976,2]
[346560488,1735087840002,-500.0,0.00012976,2]
[346560490,1735087840012,-1131.73,0.00012976,2]
[346560492,1735087840021,-500.0,0.00012976,2]
[346560494,1735087840031,-154.669237,0.00012976,2]
[346560496,1735087840040,-155.187616,0.00012976,2]
[346560498,1735087840049,-3249.992897,0.00012976,2]
[346560500,1735087840058,-4850.07,0.00012976,2]
[346560502,1735087840067,-500.0,0.00012976,2]
[346560504,1735087840077,-2632.25,0.00012976,2]
[346560506,1735087840086,-1732.35,0.00012976,2]
[346560509,1735087840097,-3285.651533,0.00012976,2]
[346560510,1735087840106,-500.0,0.00012976,2]
[346560512,1735087840115,-500.0,0.00012976,2]
[346560514,1735087840125,-2726.24,0.00012976,2]
[346560516,1735087840134,-500.0,0.00012976,2]
[346560518,1735087840143,-3792.97,0.00012976,2]
[346560520,1735087840152,-500.0,0.00012976,2]
[346560522,1735087840162,-151.0,0.00012976,2]
[346560524,1735087840170,-151.0,0.00012976,2]
[346560526,1735087840179,-872.27,0.00012976,2]
[346560528,1735087840188,-10155.15,0.00012976,2]
[346560530,1735087840198,-151.0,0.00012976,2]
[346560531,1735087840207,-500.0,0.00012976,2]
[346560532,1735087840217,-151.0,0.00012976,2]
[346560533,1735087840227,-151.0,0.00012976,2]
[346560534,1735087840236,-282.370488,0.00012976,2]
[346560535,1735087840246,-1274.06,0.00012976,2]
[346560536,1735087840255,-2830.82,0.00012976,2]
[346560537,1735087840264,-500.0,0.00012976,2]
[346560538,1735087840274,-522.11702576,0.00012976,2]
[346560539,1735087840283,-664.73,0.00012976,2]
[346560540,1735087840293,-5163.09,0.00012976,2]
[346560541,1735087840302,-2806.77,0.00012976,2]
[346560542,1735087840311,-4972.09,0.00012976,2]
[346560543,1735087840320,-500.0,0.00012976,2]
[346560544,1735087840329,-6147.88,0.00012976,2]
[346560545,1735087840339,-2091.89,0.00012976,2]
[346560546,1735087840348,-151.0,0.00012976,2]
[346560547,1735087840357,-151.0,0.00012976,2]
[346560548,1735087840367,-166.450207,0.00012976,2]
[346560549,1735087840376,-166.450207,0.00012976,2]
[346560550,1735087840385,-166.450207,0.00012976,2]
[346560551,1735087840394,-151.0,0.00012976,2]
[346560553,1735087840403,-6408.16,0.00012976,2]
[346560555,1735087840412,-590.13,0.00012976,2]
[346560557,1735087840421,-166.450207,0.00012976,2]
[346560559,1735087840433,-166.450207,0.00012976,2]
[346560561,1735087840442,-166.450207,0.00012976,2]
[346560563,1735087840451,-31264.16,0.00012976,2]
[346560565,1735087840460,-502.33589374,0.00012976,2]
[346560567,1735087840470,-1911.72,0.00012976,2]
[346560569,1735087840480,-500.0,0.00012976,2]
[346560571,1735087840489,-500.0,0.00012976,2]
[346560573,1735087840499,-152.325535,0.00012976,2]
[346560575,1735087840508,-3878.05,0.00012976,2]
[346560577,1735087840518,-2068.14,0.00012976,2]
[346560579,1735087840527,-6356.71,0.00012976,2]
[346560581,1735087840537,-500.0,0.00012976,2]
[346560583,1735087840546,-151.0,0.00012976,2]
[346560585,1735087840555,-151.0,0.00012976,2]
[346560587,1735087840564,-151.0,0.00012976,2]
[346560589,1735087840574,-151.0,0.00012976,2]
[346560591,1735087840584,-500.0,0.00012976,2]
[346560593,1735087840594,-35665.62,0.00012976,2]
[346560595,1735087840603,-151.0,0.00012976,2]
[346560597,1735087840613,-151.0,0.00012976,2]
[346560599,1735087840622,-151.0,0.00012976,2]
[346560601,1735087840631,-1262.890371,0.00012976,2]
[346560603,1735087840641,-151.0,0.00012976,2]
[346560605,1735087840650,-500.0,0.00012976,2]
[346560607,1735087840660,-1262.890371,0.00012976,2]
[346560609,1735087840670,-1262.890371,0.00012976,2]
[346560611,1735087840679,-1262.890371,0.00012976,2]
[346560613,1735087840688,-1262.890371,0.00012976,2]
[346560615,1735087840698,-1262.890371,0.00012976,2]
[346560617,1735087840707,-1262.890371,0.00012976,2]
[346560619,1735087840717,-1262.890371,0.00012976,2]
[346560621,1735087840726,-3503.70531363,0.00012976,2]
[346560624,1735087840744,-2003.95024455,0.00012976,2]
[346560627,1735087840765,-378.40765065,0.00012976,2]
[346560629,1735087840778,-5462.24845647,0.00012976,2]
[346560632,1735087840789,-542.9183347,0.00012976,2]
[346560634,1735087840799,-8397.85460534,0.00012976,2]
[346560636,1735087840813,-2895.42788783,0.00012976,2]
[346560638,1735087840824,-347.21750683,0.00012976,2]
[346560640,1735087840833,-500.0,0.00012976,2]
[346560642,1735087840842,-551.63922105,0.00012976,2]
[346560644,1735087840854,-1149.50077895,0.00012976,2]
[346560646,1735087840864,-112.92454049,0.00012976,2]
[346560654,1735087840929,-500.0,0.00012975,2]
[346560656,1735087840939,-38.07545951,0.00012976,2]
[346560658,1735087840948,-151.0,0.00012976,2]
[346560660,1735087840957,-151.0,0.00012976,2]
[346560662,1735087840967,-151.0,0.00012976,2]
[346560664,1735087840977,-3188.66,0.00012976,2]
[346560666,1735087840987,-151.0,0.00012976,2]
[346560668,1735087840996,-151.0,0.00012976,2]
[346560670,1735087841005,-3197.5,0.00012976,2]
[346560672,1735087841015,-2886.22,0.00012976,2]
[346560674,1735087841025,-151.0,0.00012976,2]
[346560676,1735087841034,-151.0,0.00012976,2]
[346560678,1735087841043,-151.0,0.00012976,2]
[346560680,1735087841052,-151.0,0.00012976,2]
[346560682,1735087841061,-714.904963,0.00012976,2]
[346560684,1735087841071,-151.0,0.00012976,2]
[346560686,1735087841080,-151.0,0.00012976,2]
[346560688,1735087841089,-714.904963,0.00012976,2]
[346560690,1735087841099,-151.0,0.00012976,2]
[346560692,1735087841108,-151.0,0.00012976,2]
[346560694,1735087841118,-299.379672,0.00012976,2]
[346560696,1735087841127,-500.0,0.00012976,2]
[346560698,1735087841137,-151.0,0.00012976,2]
[346560700,1735087841147,-151.0,0.00012976,2]
[346560702,1735087841156,-714.904963,0.00012976,2]
[346560704,1735087841166,-151.0,0.00012976,2]
[346560706,1735087841176,-714.904963,0.00012976,2]
[346560708,1735087841185,-151.0,0.00012976,2]
[346560710,1735087841194,-714.904963,0.00012976,2]
[346560712,1735087841203,-714.904963,0.00012976,2]
[346560714,1735087841213,-151.0,0.00012976,2]
[346560716,1735087841224,-714.904963,0.00012976,2]
[346560718,1735087841234,-714.904963,0.00012976,2]
[346560720,1735087841244,-151.0,0.00012976,2]
[346560722,1735087841253,-714.904963,0.00012976,2]
[346560724,1735087841262,-151.0,0.00012976,2]
[346560725,1735087841272,-714.904963,0.00012976,2]
[346560727,1735087841281,-151.0,0.00012976,2]
[346560730,1735087841292,-27398.31,0.00012976,2]
[346560732,1735087841301,-153.113591,0.00012976,2]
[346560734,1735087841311,-500.0,0.00012976,2]
[346560735,1735087841320,-714.904963,0.00012976,2]
[346560737,1735087841330,-714.904963,0.00012976,2]
[346560739,1735087841340,-2892.66,0.00012976,2]
[346560741,1735087841349,-6324.46,0.00012976,2]
[346560743,1735087841358,-1910.29,0.00012976,2]
[346560746,1735087841368,-4431.8,0.00012976,2]
[346560748,1735087841379,-5741.31,0.00012976,2]
[346560750,1735087841388,-2064.77,0.00012976,2]
[346560752,1735087841397,-500.0,0.00012976,2]
[346560754,1735087841407,-500.0,0.00012976,2]
[346560771,1735087841416,-2198.69,0.00012976,2]
[346560774,1735087841581,-151.0,0.00012976,2]
[346560776,1735087841591,-151.0,0.00012976,2]
[346560778,1735087841600,-151.0,0.00012976,2]
[346560780,1735087841609,-151.0,0.00012976,2]
[346560782,1735087841619,-151.0,0.00012976,2]
[346560784,1735087841628,-151.0,0.00012976,2]
[346560786,1735087841638,-26756.6,0.00012976,2]
[346560788,1735087841649,-151.0,0.00012976,2]
[346560790,1735087841658,-500.0,0.00012976,2]
[346560792,1735087841667,-151.0,0.00012976,2]
[346560794,1735087841676,-151.0,0.00012976,2]
[346560796,1735087841685,-177.06183,0.00012976,2]
[346560798,1735087841695,-500.0,0.00012976,2]
[346560800,1735087841704,-9615.73,0.00012976,2]
[346560802,1735087841713,-2447.49,0.00012976,2]
[346560804,1735087841722,-500.0,0.00012976,2]
[346560806,1735087841737,-500.0,0.00012976,2]
[346560808,1735087841747,-500.0,0.00012976,2]
[346560810,1735087841757,-526.11097823,0.00012976,2]
[346560812,1735087841766,-7864.49,0.00012976,2]
[346560814,1735087841775,-200.5334997,0.00012976,2]
[346560816,1735087841784,-151.0,0.00012976,2]
[346560818,1735087841794,-151.0,0.00012976,2]
[346560820,1735087841804,-151.0,0.00012976,2]
[346560822,1735087841813,-151.0,0.00012976,2]
[346560824,1735087841822,-476.45582683,0.00012976,2]
[346560826,1735087841831,-151.0,0.00012976,2]
[346560828,1735087841841,-151.0,0.00012976,2]
[346560830,1735087841850,-500.0,0.00012976,2]
[346560832,1735087841859,-151.0,0.00012976,2]
[346560834,1735087841869,-11245.19,0.00012976,2]
[346560836,1735087841878,-500.0,0.00012976,2]
[346560838,1735087841887,-500.3312142,0.00012976,2]
[346560840,1735087841897,-3517.05,0.00012976,2]
[346560842,1735087841907,-3517.05,0.00012976,2]
[346560844,1735087841916,-3517.05,0.00012976,2]
[346560846,1735087841925,-500.0,0.00012976,2]
[346560848,1735087841934,-3517.05,0.00012976,2]
[346560850,1735087841944,-3517.05,0.00012976,2]
[346560852,1735087841953,-35630.0,0.00012976,2]
[346560854,1735087841962,-500.0,0.00012976,2]
[346560856,1735087841972,-249.55041189,0.00012976,2]
[346560858,1735087841982,-1380.01,0.00012976,2]
[346560860,1735087841991,-518.16111843,0.00012976,2]
[346560862,1735087842000,-1996.93,0.00012976,2]
[346560864,1735087842009,-440.05554964,0.00012976,2]
[346560866,1735087842018,-2104.04,0.00012976,2]
[346560868,1735087842027,-500.0,0.00012976,2]
[346560870,1735087842037,-314.33617116,0.00012976,2]
[346560872,1735087842046,-500.0,0.00012976,2]
[346560874,1735087842055,-14281.72,0.00012976,2]
[346560876,1735087842064,-610.89,0.00012976,2]
[346560878,1735087842073,-1752.45,0.00012976,2]
[346560880,1735087842082,-2775.19,0.00012976,2]
[346560882,1735087842091,-1210.657639,0.00012976,2]
[346560884,1735087842100,-1210.657639,0.00012976,2]
[346560886,1735087842109,-1210.657639,0.00012976,2]
[346560888,1735087842119,-1210.657639,0.00012976,2]
[346560890,1735087842128,-1210.657639,0.00012976,2]
[346560892,1735087842137,-1210.657639,0.00012976,2]
[346560894,1735087842147,-1210.657639,0.00012976,2]
[346560896,1735087842156,-1210.657639,0.00012976,2]
[346560898,1735087842165,-1210.657639,0.00012976,2]
[346560900,1735087842174,-1210.657639,0.00012976,2]
[346560902,1735087842184,-1210.657639,0.00012976,2]
[346560904,1735087842193,-1210.657639,0.00012976,2]
[346560906,1735087842202,-3611.44,0.00012976,2]
[346560908,1735087842211,-500.0,0.00012976,2]
[346560910,1735087842220,-1210.657639,0.00012976,2]
[346560911,1735087842229,-1210.657639,0.00012976,2]
[346560913,1735087842239,-200.07,0.00012977,2]
[346560916,1735087842248,-201.17,0.00012977,2]
[346560917,1735087842258,-796.97,0.00012977,2]
[346560920,1735087842267,-500.0,0.00012977,2]
[346560922,1735087842276,-500.0,0.00012977,2]
[346560923,1735087842285,-909.22,0.00012977,2]
[346560926,1735087842295,-500.0,0.00012977,2]
[346560927,1735087842304,-681.74,0.00012977,2]
[346560930,1735087842314,-758.52,0.00012977,2]
[346560932,1735087842323,-500.0,0.00012977,2]
[346560934,1735087842335,-500.0,0.00012977,2]
[346560936,1735087842344,-501.02221119,0.00012977,2]
[346560939,1735087842354,-500.0,0.00012977,2]
[346560941,1735087842364,-1719.76,0.00012977,2]
[346560943,1735087842373,-500.0,0.00012977,2]
[346560945,1735087842383,-500.0,0.00012977,2]
[346560948,1735087842393,-900.82,0.00012977,2]
[346560950,1735087842402,-237.64889553,0.00012977,2]
[346560953,1735087842411,-500.60488937,0.00012977,2]
[346560955,1735087842420,-151.0,0.00012977,2]
[346560958,1735087842430,-151.0,0.00012977,2]
[346560961,1735087842439,-500.0,0.00012977,2]
[346560964,1735087842449,-500.0,0.00012977,2]
[346560967,1735087842459,-190.015438,0.00012977,2]
[346560969,1735087842468,-500.0,0.00012977,2]
[346560971,1735087842478,-500.0,0.00012977,2]
[346560973,1735087842488,-500.0,0.00012977,2]
[346560975,1735087842497,-512.79,0.00012977,2]
[346560977,1735087842506,-500.0,0.00012977,2]
[346560979,1735087842516,-658.93,0.00012977,2]
[346560981,1735087842525,-500.0,0.00012977,2]
[346560983,1735087842535,-1196.44,0.00012977,2]
[346560985,1735087842544,-500.0,0.00012977,2]
[346560987,1735087842553,-500.0,0.00012977,2]
[346560989,1735087842562,-1427.96,0.00012977,2]
[346560991,1735087842572,-500.0,0.00012977,2]
[346560993,1735087842581,-1099.74,0.00012977,2]
[346560995,1735087842591,-500.0,0.00012977,2]
[346560997,1735087842600,-1849.44222,0.00012977,2]
[346560999,1735087842609,-1849.44222,0.00012977,2]
[346561001,1735087842619,-1038.71,0.00012977,2]
[346561003,1735087842628,-1849.44222,0.00012977,2]
[346561005,1735087842638,-1849.44222,0.00012977,2]
[346561007,1735087842647,-896.72,0.00012977,2]
[346561009,1735087842657,-663.01,0.00012977,2]
[346561011,1735087842666,-151.0,0.00012977,2]
[346561013,1735087842676,-162.672898,0.00012977,2]
[346561015,1735087842685,-500.0,0.00012977,2]
[346561017,1735087842694,-501.29500884,0.00012977,2]
[346561019,1735087842704,-500.0,0.00012977,2]
[346561021,1735087842713,-500.0,0.00012977,2]
[346561023,1735087842722,-500.0,0.00012977,2]
[346561025,1735087842737,-500.0,0.00012977,2]
[346561027,1735087842746,-500.0,0.00012977,2]
[346561029,1735087842756,-500.0,0.00012977,2]
[346561031,1735087842766,-500.0,0.00012977,2]
[346561033,1735087842775,-818.22,0.00012977,2]
[346561035,1735087842785,-1468.743288,0.00012977,2]
[346561037,1735087842794,-1468.743288,0.00012977,2]
[346561039,1735087842804,-151.0,0.00012977,2]
[346561041,1735087842814,-151.0,0.00012977,2]
[346561043,1735087842823,-151.0,0.00012977,2]
[346561045,1735087842833,-1468.743288,0.00012977,2]
[346561047,1735087842842,-1468.743288,0.00012977,2]
[346561049,1735087842851,-884.8,0.00012977,2]
[346561051,1735087842861,-500.0,0.00012977,2]
[346561053,1735087842870,-500.0,0.00012977,2]
[346561055,1735087842881,-500.0,0.00012977,2]
[346561057,1735087842896,-1165.87,0.00012977,2]
[346561059,1735087842905,-151.0,0.00012977,2]
[346561061,1735087842914,-151.0,0.00012977,2]
[346561063,1735087842923,-781.62,0.00012977,2]
[346561065,1735087842933,-151.0,0.00012977,2]
[346561067,1735087842942,-151.0,0.00012977,2]
[346561069,1735087842952,-151.0,0.00012977,2]
[346561071,1735087842961,-151.0,0.00012977,2]
[346561073,1735087842970,-949.7,0.00012977,2]
[346561075,1735087842982,-500.0,0.00012977,2]
[346561077,1735087842992,-672.18,0.00012977,2]
[346561079,1735087843001,-500.0,0.00012977,2]
[346561081,1735087843011,-500.0,0.00012977,2]
[346561083,1735087843020,-151.0,0.00012977,2]
[346561085,1735087843030,-151.0,0.00012977,2]
[346561087,1735087843039,-151.0,0.00012977,2]